bitfinex/quotes_ETHUSD_20220309
["timestamp","ask_amount","ask_price","bid_price","bid_amount"]
[1646866681074,0.00363475,2715.7,2714.6,3.529168]
[1646866681270,0.00363475,2715.7,2714.6,3.52779133]
[1646866681922,0.3678,2715.8,2714.6,3.52779133]
[1646866682121,0.07499851,2715.7,2714.6,3.52779133]
[1646866682524,0.06860908,2715.4,2714.6,3.52779133]
[1646866682724,0.06860908,2715.4,2714.6,0.02779133]
[1646866685969,0.06860908,2715.4,2715.1,0.029168]
[1646866686570,0.06860908,2715.4,2714.8,0.029168]
[1646866689628,0.06860908,2715.4,2714.8,3.729168]
[1646866690832,0.06860908,2715.4,2714.8,3.7]
[1646866691434,0.06860908,2715.4,2714.8,3.729168]
[1646866692332,0.00096,2716.2,2715.6,0.07260193]
[1646866692536,2.88624945,2716.6,2715.8,11.5978]
[1646866692537,0.00096,2716.6,2715.8,11.5978]
[1646866692733,0.00096,2716.8,2716.1,0.01227704]
[1646866692973,0.03641798,2716.9,2716.3,0.08794217]
[1646866693173,0.03641798,2716.9,2716.4,13.66153673]
[1646866693372,0.03641798,2716.9,2716.6,11.5978]
[1646866693572,0.03641798,2716.9,2716.7,4.47089407]
[1646866693772,0.03641798,2716.9,2716.8,0.07674347]
[1646866693976,0.03641798,2716.9,2716.8,3.57674347]
[1646866694172,0.03641798,2716.9,2716.8,4.11074347]
[1646866694376,0.03641798,2716.9,2716.8,5.11074347]
[1646866695479,0.03641798,2716.9,2716.8,6.63957242]
[1646866695877,0.03641798,2716.9,2716.8,5.11074347]
[1646866696479,0.03641798,2716.9,2716.8,8.81074347]
[1646866697218,0.03641798,2716.9,2716.8,9.81074347]
[1646866697418,0.03641798,2716.9,2716.8,11.33961305]
[1646866699124,0.03641798,2716.9,2716.8,11.36878105]
[1646866700777,0.03641798,2716.9,2716.8,9.83991147]
[1646866700975,0.03641798,2716.9,2716.8,11.36865374]
[1646866701781,0.03641798,2716.9,2716.8,5.30548574]
[1646866701980,0.03641798,2716.9,2716.8,3.7]
[1646866702385,1.8678,2716.8,2715.2,4.20852754]
[1646866702581,0.04964529,2716.7,2715.6,1.52913836]
[1646866702782,0.05378143,2716.6,2715.6,1.52913836]
[1646866702987,11.23,2716.4,2715.6,1.52913836]
[1646866703183,14.23,2716.2,2715.1,0.0037241]
[1646866703385,0.81901798,2716.9,2715.6,3.5]
[1646866703581,3.49570724,2717.4,2716.8,0.01269226]
[1646866703582,0.0382614,2717.0,2716.8,0.01269226]
[1646866703784,0.0322367,2717.7,2716.8,0.01269226]
[1646866703986,0.0322367,2717.7,2717.5,0.01285984]
[1646866704232,0.0322367,2717.7,2717.5,0.91465984]
[1646866704430,0.0322367,2717.7,2717.6,1.61060773]
[1646866704621,0.0322367,2717.7,2717.6,0.08221569]
[1646866704821,0.0322367,2717.7,2717.6,1.61058164]
[1646866705222,0.0322367,2717.7,2717.6,2.81238164]
[1646866705524,0.03429812,2717.8,2717.7,2.4223146]
[1646866705724,0.03429812,2717.8,2717.7,4.39463934]
[1646866705926,0.03429812,2717.8,2717.7,4.09463934]
[1646866706324,0.03429812,2717.8,2717.7,5.09463934]
[1646866707325,0.03429812,2717.8,2717.7,16.32463934]
[1646866708168,0.03429812,2717.8,2717.7,5.09463934]
[1646866708585,0.03429812,2717.8,2717.7,4.09463934]
[1646866708768,0.03429812,2717.8,2717.7,3.72683934]
[1646866709371,0.03429812,2717.8,2717.7,2.12683934]
[1646866712535,1.17765124,2719.0,2718.7,0.51520634]
[1646866712738,0.1906096,2718.8,2718.7,0.51520634]
[1646866713334,0.13978432,2718.8,2718.7,0.51520634]
[1646866717767,0.13978432,2718.8,2718.7,4.21520634]
[1646866723679,0.03898904,2718.8,2718.7,4.21520634]
[1646866733376,0.03750158,2718.8,2718.7,4.21520634]
[1646866739175,0.0404765,2718.8,2718.7,4.21520634]
[1646866756482,0.0404765,2718.8,2718.7,5.74322138]
[1646866757718,0.0404765,2718.8,2718.7,4.2138562]
[1646866764825,0.0404765,2718.8,2718.7,5.74187242]
[1646866765224,0.0404765,2718.8,2718.7,5.74186488]
[1646866765823,0.0404765,2718.8,2718.7,4.2138562]
[1646866770882,0.32842774,2719.0,2718.7,4.2138562]
[1646866771286,0.00362257,2718.9,2718.7,4.2138562]
[1646866772128,0.32842774,2719.0,2718.7,4.2138562]
[1646866772323,0.00362256,2718.9,2718.7,4.2138562]
[1646866772525,0.00362256,2718.9,2718.8,3.5]
[1646866772729,0.00362256,2718.9,2718.8,5.39573961]
[1646866773325,0.03795124,2719.0,2718.8,5.39573961]
[1646866773526,0.03795124,2719.0,2718.9,3.529168]
[1646866773527,0.04157377,2719.0,2718.9,3.529168]
[1646866773726,0.04157377,2719.0,2718.9,5.05710761]
[1646866774529,0.03795124,2719.0,2718.9,5.05710761]
[1646866775330,0.03795124,2719.0,2718.9,3.529168]
[1646866775579,0.03795124,2719.0,2718.9,5.05689365]
[1646866776180,0.00337879,2719.1,2718.9,5.05689365]
[1646866776377,0.00337879,2719.1,2719.0,5.02772565]
[1646866776579,0.00337879,2719.1,2719.0,5.39552565]
[1646866776777,0.02604614,2719.2,2719.0,5.39552565]
[1646866776978,0.02604614,2719.2,2719.1,5.02772565]
[1646866777179,0.02942488,2719.2,2719.1,5.02772565]
[1646866777980,0.02604614,2719.2,2719.1,3.5]
[1646866778181,0.06399738,2719.2,2719.1,5.02772962]
[1646866778379,0.06399738,2719.2,2719.1,5.02772996]
[1646866778580,0.06399738,2719.2,2719.1,3.5]
[1646866779428,0.06399738,2719.2,2719.0,0.029168]
[1646866780830,0.06740069,2719.2,2719.0,0.029168]
[1646866781628,0.06399738,2719.2,2719.0,0.029168]
[1646866781829,0.06740069,2719.2,2719.0,0.029168]
[1646866782832,0.06399738,2719.2,2719.0,0.029168]
[1646866783077,0.0673993,2719.2,2719.0,0.029168]
[1646866783978,0.06399738,2719.2,2719.0,0.029168]
[1646866784382,0.06739765,2719.2,2719.0,0.029168]
[1646866784581,0.06739765,2719.2,2719.0,3.529168]
[1646866785182,0.06399738,2719.2,2719.0,3.529168]
[1646866785581,0.06739765,2719.2,2719.0,3.529168]
[1646866786386,0.06399738,2719.2,2719.0,0.029168]
[1646866786826,0.06739785,2719.2,2719.0,0.029168]
[1646866787732,0.06399738,2719.2,2719.0,0.029168]
[1646866787929,0.06739805,2719.2,2719.0,0.029168]
[1646866788830,0.06399738,2719.2,2719.0,0.029168]
[1646866789034,0.06739805,2719.2,2719.0,0.029168]
[1646866790034,0.06399738,2719.2,2719.0,0.029168]
[1646866790238,0.06739802,2719.2,2719.0,0.029168]
[1646866791299,0.06399738,2719.2,2719.0,0.029168]
[1646866791495,0.067398,2719.2,2719.0,0.029168]
[1646866792499,0.06399738,2719.2,2719.0,0.029168]
[1646866792800,0.067398,2719.2,2719.0,0.029168]
[1646866793600,0.06399738,2719.2,2719.0,0.029168]
[1646866793997,0.067398,2719.2,2719.0,0.029168]
[1646866794826,0.067398,2719.2,2719.0,0.02764436]
[1646866794827,0.06399738,2719.2,2719.0,0.02764436]
[1646866795227,0.06739801,2719.2,2719.0,0.02764436]
[1646866796025,0.06399738,2719.2,2719.0,0.02764436]
[1646866796426,0.06739801,2719.2,2719.0,0.02764436]
[1646866797228,0.06399738,2719.2,2719.0,0.02764436]
[1646866797431,0.06739801,2719.2,2719.0,0.02764436]
[1646866798473,0.06399738,2719.2,2719.0,0.02764436]
[1646866798675,0.067398,2719.2,2719.0,0.02764436]
[1646866799676,0.06399738,2719.2,2719.0,0.02764436]
[1646866799875,0.067398,2719.2,2719.0,0.02764436]
[1646866800877,0.06399738,2719.2,2719.0,0.02764436]
[1646866801079,0.06611938,2719.2,2719.0,0.02764436]
[1646866801931,0.06399738,2719.2,2719.1,1.52764579]
[1646866802132,0.06399738,2719.2,2719.1,1.55677469]
[1646866802332,0.06611938,2719.2,2719.1,1.55677469]
[1646866803337,0.06399738,2719.2,2719.1,1.55677469]
[1646866803934,0.06399738,2719.2,2719.1,1.63345807]
[1646866804134,0.06399738,2719.2,2719.1,1.93223608]
[1646866806381,0.02203254,2719.3,2719.1,1.93223608]
[1646866806382,0.02203254,2719.3,2719.2,1.6]
[1646866806583,0.02203254,2719.3,2719.2,7.21656683]
[1646866806584,3.254e-05,2719.3,2719.2,7.21656683]
[1646866806784,6.33493518,2720.1,2719.2,20.04727193]
[1646866806994,0.03808084,2720.7,2720.0,0.3678]
[1646866807182,0.03808084,2720.7,2720.2,11.5978]
[1646866807183,9.332e-05,2720.3,2720.2,11.5978]
[1646866807383,9.332e-05,2720.3,2720.2,15.34072435]
[1646866807590,0.02046632,2721.1,2720.5,11.5978]
[1646866807783,0.02046632,2721.1,2720.8,11.5978]
[1646866807984,0.02046632,2721.1,2721.0,11.5978]
[1646866808185,6.632e-05,2721.1,2721.0,13.65540669]
[1646866808386,0.03433376,2721.3,2721.2,11.5978]
[1646866808591,0.0692915,2721.6,2721.3,0.00966624]
[1646866808885,0.16683451,2721.6,2721.5,0.3678]
[1646866809085,0.16683451,2721.6,2721.5,2.70297742]
[1646866809331,0.21969789,2721.6,2721.5,15.43815484]
[1646866809927,0.21969789,2721.6,2721.5,15.81361623]
[1646866810128,0.00382124,2721.7,2721.6,0.11310211]
[1646866810129,2.124e-05,2721.7,2721.6,0.11310211]
[1646866810329,4.932e-05,2721.7,2721.6,12.24090211]
[1646866810529,5.4e-05,2722.1,2722.0,11.5978]
[1646866810728,0.02298776,2722.7,2722.2,11.8978]
[1646866810729,0.02202776,2722.7,2722.2,11.8978]
[1646866810929,0.0851304,2722.3,2722.2,12.4278]
[1646866811135,0.83905519,2723.1,2722.4,11.5978]
[1646866811329,0.02725992,2722.8,2722.5,0.53]
[1646866811533,0.00276192,2723.1,2722.3,0.37546139]
[1646866811727,0.00276192,2723.1,2722.2,0.53]
[1646866811930,7.32,2723.5,2722.3,2.13]
[1646866811931,0.34687081,2723.5,2722.3,2.13]
[1646866812127,0.11608332,2723.9,2722.3,2.43]
[1646866812326,0.11608332,2723.9,2722.5,0.3678]
[1646866812527,0.11608332,2723.9,2722.6,0.53]
[1646866812728,0.11608332,2723.9,2722.4,0.53]
[1646866812973,0.11608332,2723.9,2723.0,0.37546139]
[1646866813175,0.11608332,2723.9,2723.0,0.07668338]
[1646866813384,0.11608332,2723.9,2722.9,0.029168]
[1646866813575,0.11608332,2723.9,2722.7,0.029168]
[1646866813781,0.41608332,2723.9,2722.6,0.029168]
[1646866813977,3.5,2723.8,2722.7,0.029168]
[1646866814379,3.5,2723.8,2723.0,1.50517742]
[1646866814380,0.00382036,2723.3,2723.0,1.50517742]
[1646866814581,0.00382036,2723.3,2723.0,1.90980681]
[1646866814782,0.00382036,2723.3,2723.0,1.40517742]
[1646866815383,0.05422515,2723.7,2723.0,1.40517742]
[1646866815384,0.038946,2723.7,2723.0,1.40517742]
[1646866815683,0.0035632,2723.3,2723.0,1.43434542]
[1646866815883,0.0035632,2723.3,2723.0,1.40517742]
[1646866816289,1.26363687,2723.7,2723.0,1.40517742]
[1646866816488,1.24938622,2723.7,2723.0,1.43434542]
[1646866816735,1.24938622,2723.7,2723.1,0.029168]
[1646866817527,1.24938622,2723.7,2723.4,0.07668338]
[1646866817727,1.24938622,2723.7,2723.1,0.029168]
[1646866817930,1.24938622,2723.7,2723.0,1.43434542]
[1646866818131,1.83742,2723.6,2723.0,1.43434542]
[1646866818330,2.54938622,2723.7,2723.0,1.43434542]
[1646866818532,2.54938622,2723.7,2723.2,0.029168]
[1646866818533,1.63082622,2723.7,2723.2,0.029168]
[1646866818731,0.33082622,2723.7,2723.2,0.029168]
[1646866819132,0.33082622,2723.7,2723.4,0.37546139]
[1646866819332,0.33082622,2723.7,2723.4,0.07668338]
[1646866819534,0.33082622,2723.7,2723.3,0.029168]
[1646866819734,0.33082622,2723.7,2723.6,2.91035484]
[1646866820140,0.03082622,2723.7,2723.6,2.91035484]
[1646866820574,0.03082622,2723.7,2723.6,3.20913285]
[1646866820781,0.03082622,2723.7,2723.6,3.28581623]
[1646866821376,0.03082622,2723.7,2723.6,1.78063881]
[1646866821580,0.03082622,2723.7,2723.0,3.79304294]
[1646866821581,3.03082622,2723.7,2723.0,3.79304294]
[1646866821778,3.0,2723.5,2723.0,3.79304294]
[1646866821978,1.7,2723.1,2722.5,0.029168]
[1646866822179,1.7,2723.1,2722.4,0.04652147]
[1646866822180,2.53,2723.1,2722.4,0.04652147]
[1646866822778,3.53,2723.1,2722.4,0.04652147]
[1646866822980,2.53,2723.1,2722.4,0.04652147]
[1646866823178,4.594881,2723.0,2722.4,0.04652147]
[1646866823380,3.0,2722.6,2722.4,0.04652147]
[1646866823580,16.84913,2722.5,2721.7,0.029168]
[1646866823786,11.23,2721.9,2720.9,0.11702281]
[1646866823983,11.23,2721.7,2720.9,0.11702281]
[1646866824251,0.919703,2720.9,2720.4,0.01122946]
[1646866824448,3.53,2720.8,2720.4,0.00382246]
[1646866824645,0.53,2720.8,2720.4,0.00382246]
[1646866824846,14.76,2720.8,2720.4,0.00382246]
[1646866825043,1.7,2720.7,2719.3,0.16354429]
[1646866825245,3.3,2720.5,2719.5,0.04658513]
[1646866825447,3.3,2720.5,2718.7,0.63087901]
[1646866825448,3.0,2719.6,2718.7,0.63087901]
[1646866825645,0.92031,2719.4,2718.7,0.63087901]
[1646866825847,11.23,2719.3,2718.7,0.63087901]
[1646866826044,11.76,2719.3,2718.7,0.63087901]
[1646866826244,1.83,2719.3,2719.2,0.04652147]
[1646866826546,0.07029731,2719.2,2718.7,0.63087901]
[1646866826749,1.45023,2719.1,2718.7,0.63087901]
[1646866826945,1.75023,2719.1,2718.7,0.63087901]
[1646866827346,1.75023,2719.1,2718.7,0.5138562]
[1646866827547,1.75023,2719.1,2718.8,0.0013773]
[1646866827751,3.540554,2719.0,2718.7,0.0013773]
[1646866827985,1.7,2718.6,2718.2,0.11702281]
[1646866828184,1.45061,2718.5,2718.2,0.11702281]
[1646866828389,1.45061,2718.5,2717.6,0.11702281]
[1646866828588,1.75061,2718.5,2717.6,0.11702281]
[1646866828789,1.84107,2718.4,2717.6,0.11702281]
[1646866828988,11.4689003,2718.4,2717.6,0.11702281]
[1646866829203,11.4689003,2718.4,2716.7,0.67091282]
[1646866829204,3.0,2717.7,2716.7,0.67091282]
[1646866829397,1.8,2717.4,2716.4,0.67091282]
[1646866829589,3.0,2717.5,2716.0,0.67091282]
[1646866829590,0.92119,2716.9,2716.0,0.67091282]
[1646866829788,6.623,2716.9,2716.0,0.67091282]
[1646866829991,6.623,2716.9,2715.8,0.67091282]
[1646866829992,0.53,2716.8,2715.8,0.67091282]
[1646866830488,0.53,2716.8,2715.9,0.67091282]
[1646866830687,0.53,2716.8,2715.7,0.91399269]
[1646866830688,3.5,2716.7,2715.7,0.67091282]
[1646866830889,0.53,2716.6,2715.7,0.67091282]
[1646866831088,0.53,2716.6,2715.6,0.67091282]
[1646866831288,0.53,2716.6,2716.2,0.00381482]
[1646866831727,1.5,2717.8,2716.7,1.59]
[1646866831728,0.53,2717.2,2716.7,1.59]
[1646866832534,0.53,2717.2,2716.8,0.00148156]
[1646866833330,0.53,2717.2,2716.7,1.59]
[1646866833532,0.53,2717.2,2716.9,0.00148154]
[1646866834033,0.83,2717.2,2716.9,0.00148154]
[1646866834435,0.53,2717.2,2716.7,1.59]
[1646866834832,0.53,2717.2,2716.9,0.00380566]
[1646866835497,0.53,2717.2,2716.7,1.44380566]
[1646866835692,0.53,2717.7,2716.7,1.44380566]
[1646866835894,0.029168,2717.9,2716.7,2.11471848]
[1646866836193,0.029168,2717.9,2716.8,0.67091282]
[1646866836395,0.029168,2718.5,2717.2,3.0]
[1646866836595,0.00096,2718.5,2717.3,4.70091282]
[1646866836792,1.53,2719.7,2717.3,4.70091282]
[1646866836793,0.00096,2719.0,2717.5,1.03871282]
[1646866836997,0.029168,2719.4,2717.9,3.0]
[1646866837197,0.00096,2719.8,2718.0,4.70091282]
[1646866837408,0.030128,2720.1,2718.1,1.03871282]
[1646866837595,0.030128,2720.1,2718.4,0.3678]
[1646866837596,0.029168,2720.1,2718.4,0.3678]
[1646866837794,0.029168,2720.1,2718.6,1.28724]
[1646866837998,0.00096,2720.6,2718.7,21.883]
[1646866838294,0.00096,2720.7,2719.2,1.0]
[1646866838495,0.029168,2720.8,2719.3,4.3978]
[1646866838694,0.00096,2721.3,2719.7,3.0]
[1646866838902,0.00096,2721.3,2719.9,3.0]
[1646866839095,0.029168,2721.4,2720.1,11.5978]
[1646866839332,0.00096,2721.8,2720.3,0.3678]
[1646866839535,0.029168,2721.9,2720.5,0.3678]
[1646866839731,0.0023279,2720.7,2720.4,0.1837]
[1646866840632,0.030128,2721.9,2720.4,4.0678]
[1646866840833,0.0023279,2720.7,2720.5,0.1837]
[1646866841832,0.00096,2721.7,2720.5,0.1837]
[1646866842036,0.0023279,2720.7,2720.5,3.6837]
[1646866842232,0.0023279,2720.7,2720.5,0.1837]
[1646866843082,3.00096,2721.7,2720.5,0.1837]
[1646866843282,0.00380448,2720.7,2720.4,3.7]
[1646866844326,0.9488218,2720.8,2720.4,3.7]
[1646866844484,0.029168,2720.8,2720.4,3.7]
[1646866844792,0.3,2720.6,2720.4,3.7]
[1646866845105,0.029168,2720.5,2720.4,3.7]
[1646866845286,0.029168,2720.5,2718.7,0.1837]
[1646866845287,0.9198207,2720.2,2718.7,0.1837]
[1646866845487,4.979938,2720.1,2718.6,0.1837]
[1646866845687,4.979938,2720.1,2718.7,1.52756517]
[1646866845885,6.279938,2720.1,2718.8,0.1837]
[1646866846086,0.029168,2719.8,2718.9,1.52756517]
[1646866846288,0.029168,2719.8,2719.0,0.1837]
[1646866846485,0.029168,2719.8,2718.6,0.1837]
[1646866846486,14.5795686,2719.8,2718.6,0.1837]
[1646866846745,14.76,2719.7,2718.6,0.1837]
[1646866846933,11.23,2719.5,2717.7,0.029168]
[1646866847133,11.23,2719.5,2717.8,1.52803577]
[1646866847134,11.23,2719.3,2717.8,1.52803577]
[1646866847336,11.23,2719.1,2717.8,1.52803577]
[1646866847534,1.8,2718.9,2717.8,0.60783577]
[1646866847733,0.441,2718.8,2717.8,0.60783577]
[1646866847935,0.92028,2718.7,2717.8,0.60783577]
[1646866848136,1.66128,2718.7,2717.8,0.60783577]
[1646866848334,0.741,2718.7,2717.8,0.60783577]
[1646866848536,1.84174,2719.1,2717.8,0.97563577]
[1646866848746,0.00096,2719.1,2718.0,0.3678]
[1646866848937,3.5,2719.9,2718.0,0.3678]
[1646866848938,0.00096,2719.5,2718.0,0.3678]
[1646866849136,0.91993,2719.7,2718.0,0.3678]
[1646866849336,1.8411,2719.6,2718.1,0.1839]
[1646866849536,13.5121,2719.6,2717.8,1.33871282]
[1646866849738,2.2821,2719.6,2717.8,0.6678]
[1646866849942,2.5821,2719.6,2717.8,1.33871282]
[1646866850338,0.92004,2719.4,2717.8,0.6678]
[1646866850583,0.00096,2719.3,2717.8,0.6678]
[1646866851185,3.50096,2719.3,2717.7,0.029168]
[1646866851386,1.84041,2719.2,2717.7,0.029168]
[1646866851584,0.44196,2719.1,2717.7,0.029168]
[1646866851786,4.86211,2719.1,2717.7,0.029168]
[1646866851984,11.23,2719.0,2717.7,0.029168]
[1646866852185,11.23,2718.8,2717.7,0.029168]
[1646866852384,3.941,2718.7,2717.7,0.029168]
[1646866852593,1.84093,2718.4,2717.7,0.029168]
[1646866852785,1.36147,2718.3,2717.7,0.029168]
[1646866853584,2.2819166,2718.3,2717.7,0.029168]
[1646866853787,0.441,2718.3,2717.7,0.029168]
[1646866853983,1.6,2718.4,2718.3,0.88199999]
[1646866854231,0.3,2718.5,2718.3,0.88199999]
[1646866854432,0.3,2718.4,2718.3,0.88199999]
[1646866854634,0.441,2718.5,2718.3,0.88199999]
[1646866854833,0.741,2718.5,2718.3,0.88199999]
[1646866856638,2.858161,2718.8,2718.3,0.88199999]
[1646866856639,0.017501,2718.8,2718.3,0.88199999]
[1646866857437,0.441,2719.0,2718.3,0.88199999]
[1646866858079,0.741,2719.0,2718.3,0.88199999]
[1646866858282,1.66113,2719.0,2718.3,0.88199999]
[1646866858481,1.84058,2718.8,2718.3,0.88199999]
[1646866858682,0.441,2718.7,2718.3,0.88199999]
[1646866859881,0.92028,2718.6,2718.3,0.88199999]
[1646866860188,0.741,2718.6,2718.3,0.88199999]
[1646866861832,0.741,2718.6,2717.3,0.67091282]
[1646866861833,16.53,2718.5,2717.3,0.67091282]
[1646866862030,0.441,2718.4,2717.3,0.67091282]
[1646866862234,3.5,2718.3,2717.2,0.67091282]
[1646866862436,0.92064,2718.0,2717.1,0.85481282]
[1646866862634,0.441,2717.9,2717.2,0.67091282]
[1646866862839,0.441,2717.9,2717.1,0.85481282]
[1646866863235,3.5,2717.8,2717.1,0.85481282]
[1646866863533,2.282538,2717.7,2717.1,0.1839]
[1646866863734,3.803178,2717.7,2717.1,0.1839]
[1646866863935,3.803178,2717.7,2717.1,0.85481282]
[1646866864134,5.723968,2717.7,2717.1,0.85481282]
[1646866864335,16.953968,2717.7,2717.1,0.85481282]
[1646866864534,20.453968,2717.7,2717.1,0.1839]
[1646866864736,11.23,2717.4,2716.8,0.67091282]
[1646866864935,1.8,2717.1,2716.5,0.91399269]
[1646866865136,0.441,2717.0,2716.3,0.91399269]
[1646866865339,3.5,2716.9,2716.3,0.91399269]
[1646866865580,0.441,2716.8,2716.3,0.91399269]
[1646866865781,3.5,2716.7,2716.1,0.91399269]
[1646866865979,13.51345,2716.6,2716.0,0.91399269]
[1646866866185,3.5,2716.5,2715.7,0.91399269]
[1646866866381,0.92137,2716.3,2715.7,0.91399269]
[1646866866581,3.53119524,2716.3,2715.7,0.91399269]
[1646866866784,0.3,2716.3,2715.7,0.91399269]
[1646866866984,1.3,2716.3,2715.7,0.91399269]
[1646866867384,1.3,2716.3,2715.9,0.00380343]
[1646866867385,0.92134,2716.1,2715.9,0.00380343]
[1646866867584,0.441,2716.0,2715.9,0.00380343]
[1646866868185,2.0,2715.9,2715.4,1.37098903]
[1646866868388,0.441,2715.8,2715.3,4.31661866]
[1646866868583,0.441,2715.8,2715.3,4.28745066]
[1646866868983,10.22394704,2715.9,2715.3,4.28745066]
[1646866869232,1.3623637,2715.8,2715.3,4.28745066]
[1646866869434,1.3623637,2715.8,2715.5,1.37098903]
[1646866869435,0.441,2715.8,2715.5,1.37098903]
[1646866869638,1.22133,2716.0,2715.5,1.37098903]
[1646866869834,0.92133,2716.0,2715.6,1.37098903]
[1646866870236,0.92133,2716.0,2715.4,1.37098903]
[1646866870443,0.441,2715.9,2715.4,1.37098903]
[1646866870636,1.66232,2715.9,2715.3,4.28745066]
[1646866871036,1.66232,2715.9,2715.6,0.00379262]
[1646866871237,2.5834932,2715.9,2715.6,0.00379262]
[1646866871757,3.5834932,2715.9,2715.6,0.00379262]
[1646866871939,1.84265,2715.8,2715.2,1.37098903]
[1646866872139,0.441,2715.7,2715.6,0.00379259]
[1646866872542,0.741,2715.7,2715.6,0.00379259]
[1646866873195,0.741,2715.7,2715.3,1.40015703]
[1646866873393,0.741,2715.7,2715.5,0.00380137]
[1646866874196,0.92129,2715.6,2715.5,0.00380137]
[1646866874396,1.36229,2715.6,2715.0,1.37098903]
[1646866874598,1.36229,2715.6,2715.5,0.0038014]
[1646866874999,1.36229,2715.6,2715.5,0.67793682]
[1646866875400,1.36229,2715.6,2715.5,0.0038014]
[1646866875603,1.36229,2715.6,2715.4,0.67390987]
[1646866875799,1.36229,2715.6,2715.4,0.67758585]
[1646866875999,1.36229,2715.6,2715.5,0.67390987]
[1646866876405,1.36229,2715.6,2715.4,0.67758585]
[1646866876602,2.15229,2715.6,2715.4,0.67390987]
[1646866876826,2.15229,2715.6,2715.3,0.67390987]
[1646866877028,2.15229,2715.6,2715.4,0.00367598]
[1646866877428,5.65229,2715.6,2715.4,0.00367598]
[1646866877626,2.15229,2715.6,2715.4,0.00367598]
[1646866877831,3.15229,2715.6,2715.1,0.67390987]
[1646866878028,3.15229,2715.6,2714.8,0.67341911]
[1646866878029,1.9,2715.4,2714.8,0.67341911]
[1646866878232,12.1809057,2715.2,2714.6,0.67341911]
[1646866878431,3.941,2715.1,2714.6,0.67341911]
[1646866878630,3.941,2715.1,2714.5,0.67341911]
[1646866878830,5.241,2715.1,2714.5,0.67341911]
[1646866879030,1.741,2715.1,2714.4,0.67341911]
[1646866879232,1.8432194,2714.9,2714.3,0.67341911]
[1646866879439,0.92172,2715.0,2714.9,0.38600043]
[1646866879631,2.22172,2715.0,2714.9,0.38600043]
[1646866879833,1.66272,2715.0,2714.9,0.38600043]
[1646866880048,1.36272,2715.0,2714.9,0.38600043]
[1646866880237,0.441,2715.0,2714.9,0.38600043]
[1646866881492,1.52148,2715.1,2714.9,0.38600043]
[1646866881692,0.3,2715.1,2714.9,0.38600043]
[1646866881894,1.221428,2715.2,2714.9,0.38600043]
[1646866882994,1.221428,2715.2,2714.9,0.38979998]
[1646866883195,1.8426661,2715.8,2714.9,0.75759998]
[1646866883399,1.84257,2715.9,2715.1,0.029168]
[1646866883400,0.441,2715.9,2715.1,0.029168]
[1646866883694,0.441,2716.4,2715.6,0.029168]
[1646866883893,1.5969,2716.7,2715.6,0.029168]
[1646866884095,0.441,2716.7,2715.6,0.029168]
[1646866884740,0.92101,2716.4,2715.6,0.029168]
[1646866885140,2.28301,2716.7,2716.4,1.52562642]
[1646866885141,0.441,2716.5,2716.4,1.52562642]
[1646866886441,2.58318,2716.5,2716.4,1.52562642]
[1646866886842,1.9,2716.4,2715.8,0.09971879]
[1646866887043,1.36221,2716.4,2715.8,0.09971879]
[1646866887247,0.9212563,2716.3,2715.8,0.09971879]
[1646866887442,1.3622563,2716.3,2715.8,0.09971879]
[1646866887642,1.84254,2716.1,2715.8,0.09591923]
[1646866887842,1.22114,2716.1,2715.8,0.10137346]
[1646866888083,1.66214,2716.1,2715.9,1.52930331]
[1646866889292,2.583335,2716.1,2715.9,1.52930331]
[1646866889693,3.583335,2716.1,2715.9,1.52930331]
[1646866889892,2.583335,2716.1,2715.9,1.52930331]
[1646866890093,3.583335,2716.1,2715.9,1.52930331]
[1646866890998,2.66214,2716.1,2715.9,1.52930331]
[1646866891294,1.66214,2716.1,2715.9,1.52930331]
[1646866891523,2.66214,2716.1,2715.9,1.52930331]
[1646866891744,0.741,2716.1,2715.9,1.52930331]
[1646866891932,1.741,2716.1,2715.9,1.52930331]
[1646866892133,0.441,2716.1,2715.9,1.52930331]
[1646866892545,0.441,2716.1,2715.8,2.30399042]
[1646866892740,0.441,2716.1,2715.9,1.52930331]
[1646866893337,0.741,2716.1,2715.9,1.52930331]
[1646866893940,1.6621357,2716.1,2715.9,1.52930331]
[1646866894740,1.6621357,2716.1,2715.8,2.3004106]
[1646866894940,1.6621357,2716.1,2715.9,1.52930331]
[1646866895139,0.92118,2716.0,2715.9,1.52930331]
[1646866895340,1.36218,2716.0,2715.9,1.52930331]
[1646866896779,1.36218,2716.0,2715.8,2.30399533]
[1646866896978,1.36218,2716.0,2715.9,1.52930331]
[1646866897379,2.28353,2716.0,2715.3,0.38898377]
[1646866897578,0.9214174,2715.8,2715.2,0.94694796]
[1646866897780,0.441,2715.7,2715.2,0.04884409]
[1646866897979,0.741,2715.7,2715.2,0.04884409]
[1646866898177,0.741,2715.7,2715.3,0.00176895]
[1646866899541,1.84279,2715.6,2715.3,0.00176895]
[1646866899742,0.441,2715.5,2715.3,0.00176895]
[1646866899938,1.3623965,2715.5,2715.3,0.00176895]
[1646866900137,3.9855905,2715.6,2715.5,0.18326403]
[1646866900336,0.92143,2715.3,2714.9,0.41516843]
[1646866900540,0.441,2715.2,2714.9,0.38600043]
[1646866900839,3.6867524,2715.1,2714.7,0.04884409]
[1646866901037,0.441,2715.0,2714.7,0.09591923]
[1646866901243,0.441,2715.0,2714.9,0.00176895]
[1646866902240,2.5843606,2715.0,2714.9,0.00176895]
[1646866902439,2.5843306,2715.0,2714.9,0.00176895]
[1646866902642,3.5843306,2715.0,2714.9,0.00176895]
[1646866903083,2.66267,2715.0,2714.9,0.00176895]
[1646866903285,0.441,2715.0,2714.9,0.00176895]
[1646866903490,0.441,2715.0,2714.9,0.89987282]
[1646866903685,0.441,2715.0,2714.9,0.00176895]
[1646866903987,0.9213268,2715.6,2714.9,0.00176895]
[1646866903988,0.441,2715.5,2714.9,0.00176895]
[1646866904184,0.441,2715.5,2715.0,0.90879311]
[1646866904586,0.741,2715.5,2715.0,0.91056206]
[1646866904787,2.5838655,2715.5,2715.1,0.90879311]
[1646866905286,3.8838655,2715.5,2715.1,0.90879311]
[1646866905588,2.8838655,2715.5,2715.1,0.90879311]
[1646866905787,3.8838655,2715.5,2715.2,0.00379941]